[Event "EYCC Girls-U14 2019"]
[Site "Bratislava"]
[Date "2019.08.03"]
[Round "2.17"]
[White "Zavivaeva, Emilia"]
[Black "Sovina, Maria"]
[Result "0-1"]
[ECO "B13"]
[WhiteElo "1740"]
[BlackElo "1757"]
[Annotator "NA"]
[PlyCount "68"]
[EventDate "2019.08.02"]
[EventType "swiss"]
[EventCountry "SVK"]
[SourceTitle "playchess.com"]
[Source "ChessBase"]
[SourceQuality "1"]
[TimeControl "40/5400+30:1800+30"]

1. e4 {[%emt 0:00:00]} c6 {[%emt 0:00:00]} 2. d4 {[%emt 0:00:01]} d5 {[%emt 0:00:00]} 3. exd5 {[%emt 0:00:11]} cxd5 {[%emt 0:00:00]} 4. Bd3 {[%emt 0:00:12]} Nc6 {[%emt 0:00:00]} 5. c3 {[%emt 0:00:50]} Nf6 {[%emt 0:00:00]} 6. Bf4 {[%emt 0:00:22]} Bg4 {[%emt 0:00:00]} 7. Qb3 {[%emt 0:00:48]} e5 {[%emt 0:00:40]} 8. Bxe5 {[%emt 0:12:41]} Qe7 {[%emt 0:00:07]} 9. f4 {[%emt 0:00:20]} Nh5 {[%emt 0:00:43]} 10. Be2 {[%emt 0:02:32]} Qh4+ {[%emt 0:03:43]} 11. Kf1 {[%emt 0:03:16]} O-O-O {[%emt 0:31:46]} 12. Bb5 {[%emt 0:11:15]} Nxe5 {[%emt 0:08:09]} 13. fxe5 {[%emt 0:03:43]} Ng3+ {[%emt 0:10:36]} 14. hxg3 {[%emt 0:00:59]} Qxh1 {[%emt 0:00:04]} 15. c4 {[%emt 0:03:02]} a6 {[%emt 0:04:22]} 16. Bxa6 {[%emt 0:02:46]} bxa6 {[%emt 0:00:07]} 17. cxd5 {[%emt 0:00:18]} Qh6 {[%emt 0:03:08]} 18. Qc4+ Kb7 {[%emt 0:07:45]} 19. d6 {[%emt 0:04:12]} Bxd6 {[%emt 0:04:18]} 20. exd6 {[%emt 0:05:27]} Qf6+ {[%emt 0:05:26]} 21. Nf3 {[%emt 0:01:05]} Bxf3 {[%emt 0:00:23]} 22. Qb3+ {[%emt 0:01:12]} Ka7 {[%emt 0:00:27]} 23. gxf3 {[%emt 0:00:16]} Rxd6 {[%emt 0:02:12]} 24. Nd2 {[%emt 0:01:53]} Qxd4 {[%emt 0:00:48]} 25. Rc1 {[%emt 0:02:46]} Qd3+ {[%emt 0:04:48]} 26. Qxd3 {[%emt 0:00:15]} Rxd3 {[%emt 0:00:01]} 27. Ke2 {[%emt 0:00:07]} Rd7 {[%emt 0:00:10]} 28. Ne4 {[%emt 0:00:31]} f5 {[%emt 0:02:13]} 29. Nc5 {[%emt 0:00:55]} Re8+ {[%emt 0:00:06]} 30. Kf1 {[%emt 0:00:11]} Rd2 {[%emt 0:01:47]} 31. Nb3 {[%emt 0:00:33]} Rxb2 {[%emt 0:05:14]} 32. Rc7+ {[%emt 0:00:14]} Ka8 {[%emt 0:00:18]} 33. Na5 {[%emt 0:03:14]} Reb8 {[%emt 0:02:35]} 34. a4 {[%emt 0:03:40]} Ra2 {[%emt 0:01:03]} 0-1

[Event "EYCC Girls-U14 2019"]
[Site "Bratislava"]
[Date "2019.08.03"]
[Round "2.18"]
[White "Sevcikova, Lucia"]
[Black "Volovich, Julia"]
[Result "1-0"]
[ECO "C10"]
[WhiteElo "1800"]
[BlackElo "1736"]
[Annotator "NA"]
[PlyCount "137"]
[EventDate "2019.08.02"]
[EventType "swiss"]
[EventCountry "SVK"]
[SourceTitle "playchess.com"]
[Source "ChessBase"]
[SourceQuality "1"]
[TimeControl "40/5400+30:1800+30"]

1. e4 {[%emt 0:00:00]} e6 {[%emt 0:00:00]} 2. d4 {[%emt 0:00:00]} d5 {[%emt 0:00:00]} 3. Nd2 {[%emt 0:00:00]} dxe4 {[%emt 0:00:00]} 4. Nxe4 {[%emt 0:00:00]} Nd7 {[%emt 0:00:00]} 5. Nf3 {[%emt 0:00:14]} Ngf6 {[%emt 0:00:01]} 6. Nxf6+ {[%emt 0:00:20]} Nxf6 {[%emt 0:00:09]} 7. Ne5 {[%emt 0:00:17]} a6 {[%emt 0:02:48]} 8. Bg5 {[%emt 0:02:48]} Be7 {[%emt 0:03:56]} 9. Bd3 {[%emt 0:01:28]} Nd7 {[%emt 0:07:39]} 10. Bxe7 {[%emt 0:02:23]} Qxe7 {[%emt 0:00:20]} 11. O-O {[%emt 0:01:49]} O-O {[%emt 0:04:16]} 12. Qe2 {[%emt 0:01:33]} c5 {[%emt 0:06:11]} 13. Nxd7 {[%emt 0:08:00]} Bxd7 {[%emt 0:06:08]} 14. Qh5 {[%emt 0:01:57]} f5 {[%emt 0:04:24]} 15. dxc5 {[%emt 0:02:31]} Qxc5 {[%emt 0:01:20]} 16. Rad1 {[%emt 0:01:19]} Rad8 {[%emt 0:10:08]} 17. Rfe1 {[%emt 0:03:08]} Rfe8 {[%emt 0:11:17]} 18. Re3 {[%emt 0:03:07]} g6 {[%emt 0:07:28]} 19. Qg5 {[%emt 0:03:09]} Bc8 {[%emt 0:05:37]} 20. Rde1 {[%emt 0:03:41]} Qe7 {[%emt 0:01:54]} 21. Qg3 {[%emt 0:03:47]} Qf7 {[%emt 0:04:36]} 22. Re5 {[%emt 0:02:17]} Rd5 {[%emt 0:05:35]} 23. Bc4 {[%emt 0:03:41]} Rxe5 {[%emt 0:00:27]} 24. Qxe5 {[%emt 0:00:05]} Qg7 {[%emt 0:01:44]} 25. f4 {[%emt 0:04:18]} Qxe5 {[%emt 0:01:06]} 26. fxe5 {[%emt 0:00:07]} Rd8 {[%emt 0:01:50]} 27. Kf2 {[%emt 0:00:16]} b5 {[%emt 0:04:33]} 28. Bb3 {[%emt 0:00:48]} Kf7 {[%emt 0:03:15]} 29. Ke3 {[%emt 0:01:57]} Bb7 {[%emt 0:01:06]} 30. g3 {[%emt 0:00:59]} Be4 {[%emt 0:02:10]} 31. Re2 {[%emt 0:01:03]} Ke7 {[%emt 0:00:52]} 32. Rd2 {[%emt 0:02:24]} Bd5 {[%emt 0:01:24]} 33. Rd4 {[%emt 0:02:10]} Bxb3 {[%emt 0:01:32]} 34. Rxd8 {[%emt 0:00:07]} Kxd8 {[%emt 0:00:05]} 35. axb3 {[%emt 0:00:03]} Kd7 {[%emt 0:00:47]} 36. Kd4 {[%emt 0:00:36]} Kc6 {[%emt 0:00:19]} 37. b4 {[%emt 0:01:59]} g5 {[%emt 0:01:21]} 38. b3 {[%emt 0:01:03]} h6 {[%emt 0:00:53]} 39. c4 {[%emt 0:02:23]} Kb6 {[%emt 0:01:00]} 40. Kd3 {[%emt 0:00:00]} Kc6 {[%emt 0:00:00]} 41. Kd4 {[%emt 0:03:07]} Kb6 {[%emt 0:01:27]} 42. Kd3 {[%emt 0:00:35]} a5 {[%emt 0:17:05]} 43. c5+ {[%emt 0:02:13]} Ka6 {[%emt 0:00:37]} 44. bxa5 {[%emt 0:00:13]} Kxa5 {[%emt 0:00:11]} 45. b4+ {[%emt 0:00:09]} Ka6 {[%emt 0:00:08]} 46. h4 {[%emt 0:04:24]} h5 {[%emt 0:05:30]} 47. Ke2 {[%emt 0:00:30]} gxh4 {[%emt 0:00:30]} 48. gxh4 {[%emt 0:00:30]} Kb7 {[%emt 0:00:11]} 49. Ke3 {[%emt 0:00:18]} Kc6 {[%emt 0:00:25]} 50. Kf3 {[%emt 0:00:08]} Kd5 {[%emt 0:00:42]} 51. Kf4 {[%emt 0:00:28]} Kc6 {[%emt 0:00:12]} 52. Kg5 {[%emt 0:04:45]} Kd5 {[%emt 0:00:05]} 53. Kxh5 {[%emt 0:00:39]} f4 {[%emt 0:01:34]} 54. Kg4 {[%emt 0:05:26]} Ke4 {[%emt 0:00:08]} 55. c6 {[%emt 0:00:49]} f3 {[%emt 0:00:06]} 56. c7 {[%emt 0:00:25]} f2 {[%emt 0:00:06]} 57. c8=Q {[%emt 0:00:29]} f1=Q {[%emt 0:00:06]} 58. Qxe6 {[%emt 0:01:29]} Qf3+ {[%emt 0:02:09]} 59. Kg5 {[%emt 0:00:03]} Qf4+ {[%emt 0:00:44]} 60. Kh5 {[%emt 0:00:06]} Qf8 {[%emt 0:01:53]} 61. Qf6 {[%emt 0:01:22]} Qxb4 {[%emt 0:02:06]} 62. e6 {[%emt 0:00:30]} Qd6 {[%emt 0:01:53]} 63. Kg6 {[%emt 0:00:53]} b4 {[%emt 0:01:43]} 64. e7 {[%emt 0:01:39]} Qd7 {[%emt 0:01:15]} 65. Kf7 {[%emt 0:00:22]} b3 {[%emt 0:00:28]} 66. Qe6+ {[%emt 0:00:26]} Qxe6+ {[%emt 0:00:13]} 67. Kxe6 {[%emt 0:00:04]} b2 {[%emt 0:00:06]} 68. e8=Q {[%emt 0:00:04]} b1=Q 69. Qg6+ {[%emt 0:00:10] Kd5+} 1-0

[Event "EYCC Girls-U14 2019"]
[Site "Bratislava"]
[Date "2019.08.03"]
[Round "2.19"]
[White "Minaeva, Juliana"]
[Black "Nadzamova, Viktoria"]
[Result "0-1"]
[ECO "A45"]
[WhiteElo "1733"]
[BlackElo "1854"]
[Annotator "NA"]
[PlyCount "144"]
[EventDate "2019.08.02"]
[EventType "swiss"]
[EventCountry "SVK"]
[SourceTitle "playchess.com"]
[Source "ChessBase"]
[SourceQuality "1"]
[TimeControl "40/5400+30:1800+30"]

1. d4 {[%emt 0:00:00]} Nf6 {[%emt 0:00:00]} 2. Bf4 {[%emt 0:00:00]} e6 {[%emt 0:00:00]} 3. e3 {[%emt 0:00:00]} Be7 {[%emt 0:00:00]} 4. c3 {[%emt 0:00:48]} d5 {[%emt 0:00:00]} 5. Bd3 {[%emt 0:00:54]} b6 {[%emt 0:00:44]} 6. Nf3 {[%emt 0:02:55]} O-O {[%emt 0:07:28]} 7. Ne5 {[%emt 0:04:46]} c5 {[%emt 0:02:07]} 8. Nd2 {[%emt 0:01:27]} Bb7 {[%emt 0:02:58]} 9. O-O {[%emt 0:02:16]} c4 {[%emt 0:04:14]} 10. Bc2 {[%emt 0:01:05]} b5 {[%emt 0:01:27]} 11. Bg3 {[%emt 0:03:02]} Ne4 {[%emt 0:09:05]} 12. Nxe4 {[%emt 0:07:09]} dxe4 {[%emt 0:02:14]} 13. Qg4 {[%emt 0:14:32]} Qc8 {[%emt 0:26:11]} 14. Bxe4 {[%emt 0:03:59]} f5 {[%emt 0:02:02]} 15. Bxb7 {[%emt 0:00:15]} Qxb7 {[%emt 0:00:44]} 16. Qf3 {[%emt 0:01:33]} Qxf3 {[%emt 0:01:50]} 17. Nxf3 {[%emt 0:04:00]} Nd7 {[%emt 0:00:50]} 18. b3 {[%emt 0:14:05]} Nb6 {[%emt 0:07:45]} 19. Nd2 {[%emt 0:04:46]} Rfc8 {[%emt 0:01:25]} 20. bxc4 {[%emt 0:01:41]} Nxc4 {[%emt 0:01:02]} 21. Nb3 {[%emt 0:07:21]} Ba3 {[%emt 0:01:33]} 22. Rad1 {[%emt 0:06:31]} Nb2 {[%emt 0:00:24]} 23. Rd2 {[%emt 0:01:38]} Rxc3 {[%emt 0:00:59]} 24. d5 {[%emt 0:00:34]} Nc4 {[%emt 0:01:44]} 25. Rdd1 {[%emt 0:04:11]} e5 {[%emt 0:01:01]} 26. Nd2 {[%emt 0:00:58]} Bd6 {[%emt 0:02:00]} 27. Nxc4 {[%emt 0:00:59]} Rxc4 {[%emt 0:03:17]} 28. f3 {[%emt 0:02:00]} f4 {[%emt 0:03:35]} 29. exf4 {[%emt 0:02:01]} exf4 {[%emt 0:00:34]} 30. Bf2 {[%emt 0:02:05]} Rc2 {[%emt 0:01:02]} 31. Ra1 {[%emt 0:00:26]} Bc5 {[%emt 0:09:28]} 32. Rab1 {[%emt 0:03:07]} a6 {[%emt 0:01:09]} 33. Bxc5 {[%emt 0:00:51]} Rxc5 {[%emt 0:00:06]} 34. Rb4 {[%emt 0:01:07]} Rxd5 {[%emt 0:02:55]} 35. Rxf4 {[%emt 0:00:14]} a5 {[%emt 0:00:08]} 36. h3 {[%emt 0:00:49]} Rc8 {[%emt 0:00:39]} 37. Rf2 {[%emt 0:00:38]} g6 {[%emt 0:01:01]} 38. Re2 {[%emt 0:00:23]} Rc7 {[%emt 0:01:26]} 39. Re8+ {[%emt 0:01:12]} Kg7 {[%emt 0:00:05]} 40. Re2 {[%emt 0:00:00]} Rdc5 {[%emt 0:00:00]} 41. Rfe4 {[%emt 0:01:37]} Rc2 {[%emt 0:03:34]} 42. Kf2 {[%emt 0:05:23]} Rxe2+ {[%emt 0:01:43]} 43. Rxe2 {[%emt 0:00:06]} Kf6 {[%emt 0:01:02]} 44. g3 {[%emt 0:07:56]} Rc5 {[%emt 0:01:47]} 45. Kg2 {[%emt 0:04:09]} Re5 {[%emt 0:00:30]} 46. Rd2 {[%emt 0:01:10]} Ke6 {[%emt 0:00:14]} 47. Kf2 {[%emt 0:00:18]} b4 {[%emt 0:00:52]} 48. Rd4 {[%emt 0:01:02]} Rd5 {[%emt 0:01:44]} 49. Ke3 {[%emt 0:09:43]} Rc5 {[%emt 0:01:58]} 50. Rd2 {[%emt 0:02:10]} Rc3+ {[%emt 0:00:28]} 51. Ke4 {[%emt 0:00:14]} Rc1 {[%emt 0:00:59]} 52. Ke3 {[%emt 0:01:54]} Rc5 {[%emt 0:00:45]} 53. Ke4 {[%emt 0:00:20]} Re5+ {[%emt 0:01:00]} 54. Kf4 {[%emt 0:00:28]} Rd5 {[%emt 0:00:55]} 55. Rc2 {[%emt 0:01:04]} Kd6 {[%emt 0:02:06]} 56. Ke4 {[%emt 0:00:13]} Rc5 {[%emt 0:00:59]} 57. Rb2 {[%emt 0:00:43]} Kc6 {[%emt 0:00:22]} 58. Kd4 {[%emt 0:00:18]} Rc3 {[%emt 0:00:39]} 59. Rf2 {[%emt 0:00:34]} Kb5 {[%emt 0:00:21]} 60. g4 {[%emt 0:00:18]} g5 {[%emt 0:01:27]} 61. Re2 {[%emt 0:01:36]} Ka4 {[%emt 0:00:36]} 62. h4 {[%emt 0:00:33]} Rxf3 {[%emt 0:02:24]} 63. hxg5 {[%emt 0:00:16]} Rf4+ {[%emt 0:00:05]} 64. Kd3 {[%emt 0:00:20]} Rxg4 {[%emt 0:00:11]} 65. Kc2 {[%emt 0:00:07]} Rxg5 {[%emt 0:00:23]} 66. Kb2 {[%emt 0:00:06]} h5 {[%emt 0:00:51]} 67. Rh2 {[%emt 0:00:04]} Kb5 {[%emt 0:00:25]} 68. a3 {[%emt 0:00:08]} bxa3+ {[%emt 0:00:37]} 69. Kxa3 {[%emt 0:00:05]} Kc4 {[%emt 0:00:20]} 70. Kb2 {[%emt 0:00:34]} Kd3 {[%emt 0:00:16]} 71. Rh4 {[%emt 0:00:13]} Ke3 {[%emt 0:00:11]} 72. Ka3 {[%emt 0:00:19]} Kf3 {[%emt 0:00:10]} 0-1

[Event "EYCC Girls-U14 2019"]
[Site "Bratislava"]
[Date "2019.08.03"]
[Round "2.20"]
[White "Hrebenshchykova, Yelyzaveta"]
[Black "Mammadova, Aytaj"]
[Result "1-0"]
[ECO "C00"]
[WhiteElo "1955"]
[BlackElo "1416"]
[Annotator "NA"]
[PlyCount "91"]
[EventDate "2019.08.02"]
[EventType "swiss"]
[EventCountry "SVK"]
[SourceTitle "playchess.com"]
[Source "ChessBase"]
[SourceQuality "1"]
[TimeControl "40/5400+30:1800+30"]

1. e4 {[%emt 0:00:00]} e6 {[%emt 0:00:00]} 2. d4 {[%emt 0:00:00]} b6 {[%emt 0:00:00]} 3. Nf3 {[%emt 0:04:52]} Bb7 {[%emt 0:00:05]} 4. Bd3 {[%emt 0:01:04]} Nf6 {[%emt 0:02:30]} 5. Qe2 {[%emt 0:05:07]} d6 {[%emt 0:04:01]} 6. c4 {[%emt 0:04:27]} Be7 {[%emt 0:03:03]} 7. Nc3 {[%emt 0:03:45]} Nc6 {[%emt 0:01:18]} 8. O-O {[%emt 0:04:03]} O-O {[%emt 0:06:36]} 9. a3 {[%emt 0:16:18]} e5 {[%emt 0:01:18]} 10. d5 {[%emt 0:02:27]} Na5 {[%emt 0:01:33]} 11. Qc2 {[%emt 0:02:14]} Bc8 {[%emt 0:03:11]} 12. b4 {[%emt 0:00:53]} Nb7 {[%emt 0:00:13]} 13. h3 {[%emt 0:07:43]} a5 {[%emt 0:02:40]} 14. Be3 {[%emt 0:00:16]} h6 {[%emt 0:00:51]} 15. c5 {[%emt 0:01:57]} dxc5 {[%emt 0:04:02]} 16. Nxe5 {[%emt 0:11:33]} Nd7 {[%emt 0:07:14]} 17. Nc6 {[%emt 0:00:43]} Qe8 {[%emt 0:00:15]} 18. e5 {[%emt 0:04:30]} Nd8 {[%emt 0:02:20]} 19. Nb5 {[%emt 0:04:42]} Nxc6 {[%emt 0:02:39]} 20. dxc6 {[%emt 0:00:12]} Nxe5 {[%emt 0:00:14]} 21. Nxc7 {[%emt 0:02:12]} Qxc6 {[%emt 0:02:39]} 22. Nxa8 {[%emt 0:00:05]} Qxa8 {[%emt 0:01:44]} 23. Be4 {[%emt 0:01:44]} Qa7 {[%emt 0:00:42]} 24. bxc5 {[%emt 0:00:18]} bxc5 {[%emt 0:02:07]} 25. Rfc1 {[%emt 0:00:36]} Nd7 {[%emt 0:03:48]} 26. Rab1 {[%emt 0:02:14]} Qc7 {[%emt 0:03:05]} 27. Qa4 {[%emt 0:07:33]} Nf6 {[%emt 0:02:51]} 28. Bc6 {[%emt 0:03:53]} Qe5 {[%emt 0:03:20]} 29. Qf4 {[%emt 0:02:52]} Qe6 {[%emt 0:01:20]} 30. Bxc5 {[%emt 0:01:22]} Bxc5 {[%emt 0:02:47]} 31. Rxc5 {[%emt 0:00:03]} Rd8 {[%emt 0:02:58]} 32. Qc7 {[%emt 0:01:11]} Rf8 {[%emt 0:04:56]} 33. Rxa5 {[%emt 0:02:18]} Ne8 {[%emt 0:01:58]} 34. Bxe8 {[%emt 0:01:09]} Rxe8 {[%emt 0:00:17]} 35. Rb8 {[%emt 0:01:55]} Kh7 {[%emt 0:10:14]} 36. Raa8 {[%emt 0:00:49]} Bd7 {[%emt 0:02:54]} 37. Rxe8 {[%emt 0:00:19]} Bxe8 {[%emt 0:00:08]} 38. Kh2 {[%emt 0:00:50]} Qe4 {[%emt 0:01:03]} 39. Rc8 {[%emt 0:00:35]} Qe2 {[%emt 0:02:38]} 40. Qc2+ {[%emt 0:00:00]} Qxc2 {[%emt 0:00:00]} 41. Rxc2 {[%emt 0:00:28]} Kg6 {[%emt 0:00:47]} 42. Rc4 {[%emt 0:00:10]} Kf6 {[%emt 0:00:22]} 43. a4 {[%emt 0:00:04]} Ke6 {[%emt 0:00:10]} 44. Re4+ {[%emt 0:00:32]} Kd7 {[%emt 0:00:15]} 45. a5 {[%emt 0:00:04]} Kd8 {[%emt 0:00:14]} 46. Rxe8+ {[%emt 0:00:34]} 1-0

[Event "EYCC Girls-U14 2019"]
[Site "Bratislava"]
[Date "2019.08.04"]
[Round "3.1"]
[White "Yakimova, Mariya"]
[Black "Zhou, Lulu"]
[Result "1/2-1/2"]
[ECO "D02"]
[WhiteElo "2250"]
[BlackElo "1944"]
[Annotator "NA"]
[PlyCount "60"]
[EventDate "2019.08.02"]
[EventType "swiss"]
[EventCountry "SVK"]
[SourceTitle "playchess.com"]
[Source "ChessBase"]
[SourceQuality "1"]
[TimeControl "40/5400+30:1800+30"]

1. d4 {[%emt 0:00:00]} d5 {[%emt 0:00:00]} 2. Nf3 {[%emt 0:00:00]} Nf6 {[%emt 0:00:00]} 3. c4 {[%emt 0:00:00]} e6 {[%emt 0:00:00]} 4. g3 {[%emt 0:00:00]} c6 {[%emt 0:00:00]} 5. Bg2 {[%emt 0:00:00]} Be7 {[%emt 0:00:10]} 6. O-O {[%emt 0:00:00]} O-O {[%emt 0:00:09]} 7. Qc2 {[%emt 0:00:02]} Nbd7 {[%emt 0:00:06]} 8. Rd1 {[%emt 0:00:07]} b6 {[%emt 0:00:21]} 9. b3 {[%emt 0:00:05]} Ba6 {[%emt 0:00:06]} 10. Bf4 {[%emt 0:04:16]} Rc8 {[%emt 0:00:18]} 11. Nc3 {[%emt 0:09:08]} dxc4 {[%emt 0:01:34]} 12. Nd2 {[%emt 0:00:11]} c5 {[%emt 0:06:11]} 13. Nxc4 {[%emt 0:08:45]} cxd4 {[%emt 0:13:03]} 14. Rxd4 {[%emt 0:00:06]} b5 {[%emt 0:00:22]} 15. Nd6 {[%emt 0:03:58]} e5 {[%emt 0:01:16]} 16. Nxc8 {[%emt 0:06:23]} Qxc8 {[%emt 0:03:37]} 17. Rd2 {[%emt 0:03:45]} exf4 {[%emt 0:00:07]} 18. gxf4 {[%emt 0:01:18]} Bb4 {[%emt 0:02:28]} 19. Nd5 {[%emt 0:08:00]} Nxd5 {[%emt 0:12:09]} 20. Qxc8 {[%emt 0:00:15]} Rxc8 {[%emt 0:00:08]} 21. Rxd5 {[%emt 0:00:08]} Nf6 {[%emt 0:00:18]} 22. Rdd1 {[%emt 0:00:47]} Ba5 {[%emt 0:06:05]} 23. Rac1 {[%emt 0:01:19]} Re8 {[%emt 0:02:11]} 24. Rc6 {[%emt 0:06:01]} Bb7 {[%emt 0:10:53]} 25. Rxf6 {[%emt 0:00:36]} gxf6 {[%emt 0:00:05]} 26. Bxb7 {[%emt 0:00:02]} Rxe2 {[%emt 0:00:18]} 27. a4 {[%emt 0:00:32]} bxa4 {[%emt 0:00:11]} 28. bxa4 {[%emt 0:00:03]} Bb6 {[%emt 0:00:25]} 29. Rf1 {[%emt 0:00:31]} Ra2 {[%emt 0:05:45]} 30. Bc6 {[%emt 0:01:29]} Kg7 {[%emt 0:00:52]} 1/2-1/2

[Event "EYCC Girls-U14 2019"]
[Site "Bratislava"]
[Date "2019.08.04"]
[Round "3.2"]
[White "Wikar, Martyna"]
[Black "Tarasenka, Aliaksandra"]
[Result "1-0"]
[ECO "B40"]
[WhiteElo "2020"]
[BlackElo "2231"]
[Annotator "NA"]
[PlyCount "111"]
[EventDate "2019.08.02"]
[EventType "swiss"]
[EventCountry "SVK"]
[SourceTitle "playchess.com"]
[Source "ChessBase"]
[SourceQuality "1"]
[TimeControl "40/5400+30:1800+30"]

1. e4 {[%emt 0:00:00]} c5 {[%emt 0:00:00]} 2. Nf3 {[%emt 0:00:00]} e6 {[%emt 0:00:00]} 3. d4 {[%emt 0:00:00]} cxd4 {[%emt 0:00:04]} 4. Nxd4 {[%emt 0:00:00]} Nf6 {[%emt 0:00:11]} 5. Nc3 {[%emt 0:00:16]} Bb4 {[%emt 0:00:19]} 6. e5 {[%emt 0:01:13]} Nd5 {[%emt 0:00:11]} 7. Bd2 {[%emt 0:05:16]} Nxc3 {[%emt 0:00:37]} 8. bxc3 {[%emt 0:00:28]} Be7 {[%emt 0:00:46]} 9. Qg4 {[%emt 0:01:01]} g6 {[%emt 0:00:57]} 10. Bd3 {[%emt 0:03:41]} d5 {[%emt 0:10:17]} 11. exd6 {[%emt 0:15:58]} Bxd6 {[%emt 0:04:09]} 12. Nb5 {[%emt 0:02:10]} Be5 {[%emt 0:10:23]} 13. Bf4 {[%emt 0:08:15]} Nc6 {[%emt 0:11:14]} 14. O-O {[%emt 0:08:38]} O-O {[%emt 0:05:05]} 15. Rad1 {[%emt 0:06:54]} Qe7 {[%emt 0:06:22]} 16. Bxe5 {[%emt 0:06:48]} Nxe5 {[%emt 0:00:17]} 17. Qb4 {[%emt 0:04:33]} Nc6 {[%emt 0:07:11]} 18. Qxe7 {[%emt 0:03:28]} Nxe7 {[%emt 0:00:06]} 19. Nc7 {[%emt 0:03:33]} Rb8 {[%emt 0:00:29]} 20. Be4 {[%emt 0:06:18]} b6 {[%emt 0:06:17]} 21. Rfe1 {[%emt 0:05:10]} Bb7 {[%emt 0:02:30]} 22. Rd7 {[%emt 0:02:23]} Bxe4 {[%emt 0:06:09]} 23. Rxe4 {[%emt 0:00:45]} Rfd8 {[%emt 0:02:15]} 24. Red4 {[%emt 0:01:41]} Nc6 {[%emt 0:01:50]} 25. Rxd8+ {[%emt 0:00:40]} Rxd8 {[%emt 0:00:38]} 26. Rxd8+ {[%emt 0:00:09]} Nxd8 {[%emt 0:00:04]} 27. Kf1 {[%emt 0:00:43]} Kf8 {[%emt 0:00:56]} 28. Ke2 {[%emt 0:00:44]} Ke7 {[%emt 0:01:07]} 29. Kd3 {[%emt 0:01:30]} Kd7 {[%emt 0:01:28]} 30. Nb5 {[%emt 0:01:01]} a6 {[%emt 0:02:19]} 31. Na3 {[%emt 0:01:08]} Kc6 {[%emt 0:03:12]} 32. Kd4 {[%emt 0:02:14]} f6 {[%emt 0:01:54]} 33. f4 {[%emt 0:01:21]} h5 {[%emt 0:03:29]} 34. Nc4 {[%emt 0:01:25]} Nf7 {[%emt 0:03:10]} 35. g3 {[%emt 0:01:40]} Nh6 {[%emt 0:03:34]} 36. Nd2 {[%emt 0:02:15]} Nf5+ {[%emt 0:02:49]} 37. Kd3 {[%emt 0:00:42]} Nd6 {[%emt 0:01:06]} 38. Kd4 {[%emt 0:00:40]} Kb5 {[%emt 0:02:14]} 39. c4+ {[%emt 0:01:23]} Kb4 {[%emt 0:02:22]} 40. Nb1 {[%emt 0:00:00]} Nf5+ {[%emt 0:00:00]} 41. Kd3 {[%emt 0:04:00]} Nd6 {[%emt 0:06:10]} 42. Kd4 {[%emt 0:02:46]} Nf5+ {[%emt 0:18:21]} 43. Kd3 {[%emt 0:00:07]} h4 {[%emt 0:03:52]} 44. c3+ {[%emt 0:03:36]} Ka4 {[%emt 0:02:54]} 45. gxh4 {[%emt 0:01:03]} Nxh4 {[%emt 0:00:09]} 46. c5 {[%emt 0:05:17]} bxc5 {[%emt 0:01:37]} 47. Kc4 {[%emt 0:00:16]} Ng2 {[%emt 0:00:52]} 48. Kxc5 {[%emt 0:00:36]} Nxf4 {[%emt 0:00:29]} 49. Kd6 {[%emt 0:01:04]} e5 {[%emt 0:00:54]} 50. c4 {[%emt 0:00:28]} e4 {[%emt 0:00:50]} 51. c5 {[%emt 0:00:21]} e3 {[%emt 0:00:45]} 52. c6 {[%emt 0:00:22]} Kb4 {[%emt 0:00:24]} 53. c7 {[%emt 0:00:30]} e2 {[%emt 0:00:34]} 54. c8=Q {[%emt 0:00:08]} e1=Q {[%emt 0:00:07]} 55. Qc5+ {[%emt 0:00:18]} Ka4 {[%emt 0:00:37]} 56. Nc3+ {[%emt 0:00:12]} 1-0

[Event "EYCC Girls-U14 2019"]
[Site "Bratislava"]
[Date "2019.08.04"]
[Round "3.3"]
[White "Sovina, Maria"]
[Black "Nur-Mukhametova, Alisa"]
[Result "1/2-1/2"]
[ECO "A61"]
[WhiteElo "1757"]
[BlackElo "2126"]
[Annotator "NA"]
[PlyCount "68"]
[EventDate "2019.08.02"]
[EventType "swiss"]
[EventCountry "SVK"]
[SourceTitle "playchess.com"]
[Source "ChessBase"]
[SourceQuality "1"]
[TimeControl "40/5400+30:1800+30"]

1. d4 {[%emt 0:00:00]} e6 {[%emt 0:00:07]} 2. c4 {[%emt 0:00:13]} c5 {[%emt 0:00:13]} 3. d5 {[%emt 0:00:52]} exd5 {[%emt 0:00:22]} 4. cxd5 {[%emt 0:00:38]} d6 {[%emt 0:00:20]} 5. Nc3 {[%emt 0:00:45]} g6 {[%emt 0:00:23]} 6. Nf3 {[%emt 0:02:10]} Nf6 {[%emt 0:00:27]} 7. Nd2 {[%emt 0:00:23]} Bg7 {[%emt 0:07:57]} 8. Nc4 {[%emt 0:00:12]} O-O {[%emt 0:00:44]} 9. Bf4 {[%emt 0:00:08]} Ne8 {[%emt 0:01:10]} 10. Qd2 {[%emt 0:00:32]} Nd7 {[%emt 0:11:44]} 11. Nxd6 {[%emt 0:17:53]} Nxd6 {[%emt 0:00:46]} 12. Bxd6 {[%emt 0:00:05]} Re8 {[%emt 0:00:19]} 13. e3 {[%emt 0:07:42]} a6 {[%emt 0:01:49]} 14. a4 {[%emt 0:07:10]} c4 {[%emt 0:10:42]} 15. Bg3 {[%emt 0:13:16]} Nb6 {[%emt 0:06:30]} 16. d6 {[%emt 0:03:13]} Be6 {[%emt 0:02:15]} 17. Be2 {[%emt 0:02:02]} Nd7 {[%emt 0:05:55]} 18. O-O {[%emt 0:05:38]} Nc5 {[%emt 0:00:57]} 19. Rad1 {[%emt 0:03:41]} Qd7 {[%emt 0:03:29]} 20. Bf3 {[%emt 0:04:55]} Rac8 {[%emt 0:07:31]} 21. Qc2 {[%emt 0:02:54]} Nd3 {[%emt 0:03:01]} 22. Be4 {[%emt 0:01:41]} b5 {[%emt 0:02:33]} 23. axb5 {[%emt 0:05:09]} axb5 {[%emt 0:03:17]} 24. Bxd3 {[%emt 0:01:38]} cxd3 {[%emt 0:00:28]} 25. Qxd3 {[%emt 0:01:33]} Bc4 {[%emt 0:01:11]} 26. Qd2 {[%emt 0:00:07]} Bxf1 {[%emt 0:01:49]} 27. Kxf1 {[%emt 0:01:03]} Bxc3 {[%emt 0:09:07]} 28. bxc3 {[%emt 0:00:02]} Ra8 {[%emt 0:03:51]} 29. Qd5 {[%emt 0:04:40]} Kg7 {[%emt 0:06:11]} 30. Rb1 {[%emt 0:05:40]} Rab8 {[%emt 0:02:17]} 31. Ra1 {[%emt 0:00:58]} f6 {[%emt 0:01:03]} 32. e4 {[%emt 0:01:52]} Rb7 {[%emt 0:02:52]} 33. e5 {[%emt 0:00:58]} Qf7 {[%emt 0:01:26]} 34. exf6+ {[%emt 0:01:11]} Kg8 {[%emt 0:00:14] Ke1} 1/2-1/2